fUSD/lending_fUSD_20241004
["ID","MTS","AMOUNT","RATE_DAILY","PERIOD"]
[339848052,1728063046881,-500.0,0.00038356,120]
[339848053,1728063046891,-500.0,0.00038356,120]
[339848054,1728063046901,-500.0,0.00038356,120]
[339848055,1728063046910,-500.0,0.00038356,120]
[339848056,1728063046919,-500.0,0.00038356,120]
[339848057,1728063046929,-1233.98,0.00038356,120]
[339848058,1728063046938,-500.0,0.00038356,120]
[339848059,1728063046947,-856.74,0.00038356,120]
[339848060,1728063046957,-500.0,0.00038356,120]
[339848061,1728063046970,-4407.06,0.00038356,120]
[339848062,1728063046979,-595.53,0.00038356,120]
[339848063,1728063046989,-500.0,0.00038356,120]
[339848064,1728063046998,-500.0,0.00038356,120]
[339848065,1728063047007,-1742.54,0.00038356,120]
[339848066,1728063047016,-500.0,0.00038356,120]
[339848067,1728063047026,-500.0,0.00038356,120]
[339848068,1728063047035,-500.0,0.00038356,120]
[339848069,1728063047044,-500.0,0.00038356,120]
[339848070,1728063047054,-562.37,0.00038356,120]
[339848071,1728063047063,-500.0,0.00038356,120]
[339848072,1728063047072,-1433.97,0.00038356,120]
[339848073,1728063047082,-500.0,0.00038356,120]
[339848074,1728063047091,-500.0,0.00038356,120]
[339848075,1728063047101,-3000.19,0.00038356,120]
[339848076,1728063047111,-500.0,0.00038356,120]
[339848077,1728063047120,-500.0,0.00038356,120]
[339848078,1728063047130,-500.0,0.00038356,120]
[339848079,1728063047140,-500.0,0.00038356,120]
[339848080,1728063047149,-4345.35,0.00038356,120]
[339848081,1728063047159,-500.0,0.00038356,120]
[339848082,1728063047169,-500.0,0.00038356,120]
[339848083,1728063047179,-500.0,0.00038356,120]
[339848084,1728063047188,-1216.99,0.00038356,120]
[339848085,1728063047197,-519.02,0.00038356,120]
[339848086,1728063047207,-500.0,0.00038356,120]
[339848087,1728063047216,-500.0,0.00038356,120]
[339848088,1728063047225,-500.0,0.00038356,120]
[339848089,1728063047235,-660.79,0.00038356,120]
[339848090,1728063047244,-500.0,0.00038356,120]
[339848091,1728063047253,-500.0,0.00038356,120]
[339848092,1728063047263,-500.0,0.00038356,120]
[339848093,1728063047272,-500.0,0.00038356,120]
[339848094,1728063047282,-500.0,0.00038356,120]
[339848095,1728063047291,-500.0,0.00038356,120]
[339848096,1728063047301,-500.0,0.00038356,120]
[339848097,1728063047310,-500.0,0.00038356,120]
[339848098,1728063047319,-1285.24,0.00038356,120]
[339848099,1728063047329,-500.0,0.00038356,120]
[339848100,1728063047339,-500.0,0.00038356,120]
[339848101,1728063047348,-2612.15,0.00038356,120]
[339848102,1728063047359,-500.0,0.00038356,120]
[339848103,1728063047368,-500.0,0.00038356,120]
[339848104,1728063047378,-500.0,0.00038356,120]
[339848105,1728063047387,-500.0,0.00038356,120]
[339848106,1728063047397,-533.43,0.00038356,120]
[339848107,1728063047406,-500.0,0.00038356,120]
[339848108,1728063047416,-500.0,0.00038356,120]
[339848109,1728063047426,-500.0,0.00038356,120]
[339848110,1728063047435,-500.0,0.00038356,120]
[339848111,1728063047445,-500.0,0.00038356,120]
[339848112,1728063047455,-583.07,0.00038356,120]
[339848113,1728063047464,-500.0,0.00038356,120]
[339848114,1728063047473,-797.05,0.00038356,120]
[339848115,1728063047483,-572.38,0.00038356,120]
[339848116,1728063047493,-500.0,0.00038356,120]
[339848117,1728063047502,-500.0,0.00038356,120]
[339848118,1728063047512,-500.0,0.00038356,120]
[339848119,1728063047521,-745.55,0.00038356,120]
[339848120,1728063047531,-500.0,0.00038356,120]
[339848121,1728063047540,-589.65,0.00038356,120]
[339848122,1728063047550,-618.56,0.00038356,120]
[339848123,1728063047559,-500.0,0.00038356,120]
[339848124,1728063047568,-985.19,0.00038356,120]
[339848125,1728063047578,-968.58,0.00038356,120]
[339848126,1728063047587,-500.0,0.00038356,120]
[339848127,1728063047597,-500.0,0.00038356,120]
[339848128,1728063047607,-500.0,0.00038356,120]
[339848129,1728063047617,-500.0,0.00038356,120]
[339848130,1728063047627,-500.0,0.00038356,120]
[339848131,1728063047636,-698.5,0.00038356,120]
[339848132,1728063047646,-500.0,0.00038356,120]
[339848133,1728063047655,-500.0,0.00038356,120]
[339848134,1728063047665,-523.54,0.00038356,120]
[339848135,1728063047674,-1202.09,0.00038356,120]
[339848136,1728063047683,-500.0,0.00038356,120]
[339848137,1728063047693,-283.51823826,0.00038356,120]
[339848138,1728063047702,-718.88,0.00038356,120]
[339848139,1728063047757,-1876.58,0.00038356,120]
[339848140,1728063047766,-2793.47,0.00038356,120]
[339848141,1728063047775,-500.0,0.00038356,120]
[339848142,1728063047785,-889.6,0.00038356,120]
[339848143,1728063047794,-940.16,0.00038356,120]
[339848144,1728063047803,-636.39,0.00038356,120]
[339848145,1728063047813,-500.0,0.00038356,120]
[339848146,1728063047822,-569.78,0.00038356,120]
[339848147,1728063047832,-887.8,0.00038356,120]
[339848148,1728063047841,-500.0,0.00038356,120]
[339848149,1728063047850,-500.0,0.00038356,120]
[339848150,1728063047862,-500.0,0.00038356,120]
[339848151,1728063047871,-890.45,0.00038356,120]
[339848152,1728063047879,-500.0,0.00038356,120]
[339848153,1728063047888,-500.0,0.00038356,120]
[339848154,1728063047898,-500.0,0.00038356,120]
[339848155,1728063047907,-500.0,0.00038356,120]
[339848156,1728063047916,-768.84,0.00038356,120]
[339848157,1728063047925,-499.9998091,0.00038356,120]
[339848158,1728063047934,-500.0,0.00038356,120]
[339848159,1728063047943,-500.0,0.00038356,120]
[339848160,1728063047952,-500.0,0.00038356,120]
[339848161,1728063047964,-500.0,0.00038356,120]
[339848162,1728063047974,-447.04882612,0.00038356,120]
[339848163,1728063047983,-500.0,0.00038356,120]
[339848164,1728063047993,-500.0,0.00038356,120]
[339848165,1728063048002,-500.0,0.00038356,120]
[339848166,1728063048011,-611.08,0.00038356,120]
[339848167,1728063048021,-500.0,0.00038356,120]
[339848168,1728063048030,-614.33,0.00038356,120]
[339848169,1728063048039,-500.0,0.00038356,120]
[339848170,1728063048051,-914.61,0.00038356,120]
[339848171,1728063048061,-500.0,0.00038356,120]
[339848172,1728063048070,-500.0,0.00038356,120]
[339848173,1728063048079,-895.84,0.00038356,120]
[339848174,1728063048089,-687.49,0.00038356,120]
[339848175,1728063048098,-586.72,0.00038356,120]
[339848176,1728063048108,-500.0,0.00038356,120]
[339848177,1728063048117,-500.0,0.00038356,120]
[339848178,1728063048126,-500.0,0.00038356,120]
[339848179,1728063048136,-500.0,0.00038356,120]
[339848180,1728063048145,-500.0,0.00038356,120]
[339848181,1728063048155,-500.0,0.00038356,120]
[339848182,1728063048164,-276.02410815,0.00038356,120]
[339848183,1728063048174,-2823.22,0.00038356,120]
[339848184,1728063048184,-500.0,0.00038356,120]
[339848185,1728063048193,-500.0,0.00038356,120]
[339848186,1728063048203,-524.31,0.00038356,120]
[339848187,1728063048213,-2010.7,0.00038356,120]
[339848188,1728063048223,-500.0,0.00038356,120]
[339848189,1728063048232,-500.0,0.00038356,120]
[339848190,1728063048242,-500.0,0.00038356,120]
[339848191,1728063048251,-500.0,0.00038356,120]
[339848192,1728063048260,-872.38,0.00038356,120]
[339848193,1728063048270,-500.0,0.00038356,120]
[339848194,1728063048280,-500.0,0.00038356,120]
[339848195,1728063048289,-500.0,0.00038356,120]
[339848196,1728063048299,-691.95,0.00038356,120]
[339848197,1728063048308,-500.0,0.00038356,120]
[339848198,1728063048318,-1398.9,0.00038356,120]
[339848199,1728063048327,-520.51,0.00038356,120]
[339848200,1728063048337,-500.0,0.00038356,120]
[339848201,1728063048346,-797.09,0.00038356,120]
[339848202,1728063048358,-500.0,0.00038356,120]
[339848203,1728063048368,-500.0,0.00038356,120]
[339848204,1728063048378,-1724.51,0.00038356,120]
[339848205,1728063048388,-500.0,0.00038356,120]
[339848206,1728063048398,-500.0,0.00038356,120]
[339848207,1728063048407,-500.0,0.00038356,120]
[339848208,1728063048416,-2347.95,0.00038356,120]
[339848209,1728063048426,-761.5,0.00038356,120]
[339848210,1728063048435,-500.0,0.00038356,120]
[339848211,1728063048445,-500.0,0.00038356,120]
[339848212,1728063048454,-720.79,0.00038356,120]
[339848213,1728063048464,-1442.24,0.00038356,120]
[339848214,1728063048474,-500.0,0.00038356,120]
[339848215,1728063048484,-500.0,0.00038356,120]
[339848216,1728063048493,-1211.99,0.00038356,120]
[339848217,1728063048503,-500.0,0.00038356,120]
[339848218,1728063048513,-500.0,0.00038356,120]
[339848219,1728063048522,-500.0,0.00038356,120]
[339848220,1728063048532,-500.0,0.00038356,120]
[339848221,1728063048541,-500.0,0.00038356,120]
[339848222,1728063048551,-689.84,0.00038356,120]
[339848223,1728063048561,-500.0,0.00038356,120]
[339848224,1728063048570,-632.08,0.00038356,120]
[339848225,1728063048579,-500.0,0.00038356,120]
[339848226,1728063048589,-500.0,0.00038356,120]
[339848227,1728063048599,-456.78870623,0.00038356,120]
[339848228,1728063048609,-3974.17,0.00038356,120]
[339848229,1728063048618,-730.51,0.00038356,120]
[339848230,1728063048628,-500.0,0.00038356,120]
[339848231,1728063048638,-500.0,0.00038356,120]
[339848232,1728063048648,-785.48,0.00038356,120]
[339848233,1728063048657,-500.0,0.00038356,120]
[339848234,1728063048667,-500.0,0.00038356,120]
[339848235,1728063048677,-759.47,0.00038356,120]
[339848236,1728063048687,-500.0,0.00038356,120]
[339848237,1728063048696,-500.0,0.00038356,120]
[339848238,1728063048706,-500.0,0.00038356,120]
[339848239,1728063048715,-500.0,0.00038356,120]
[339848240,1728063048725,-500.0,0.00038356,120]
[339848241,1728063048734,-1770.78,0.00038356,120]
[339848242,1728063048744,-500.0,0.00038356,120]
[339848243,1728063048753,-500.0,0.00038356,120]
[339848244,1728063048763,-624.81,0.00038356,120]
[339848245,1728063048773,-500.0,0.00038356,120]
[339848246,1728063048783,-509.02,0.00038356,120]
[339848247,1728063048792,-500.0,0.00038356,120]
[339848248,1728063048802,-1610.36,0.00038356,24]
[339848249,1728063048812,-500.0,0.00038356,120]
[339848250,1728063048823,-500.0,0.00038356,120]
[339848251,1728063048833,-254.05803725,0.00038356,120]
[339848252,1728063048843,-2040.7,0.00038356,120]
[339848253,1728063048852,-510.69,0.00038356,120]
[339848254,1728063048863,-500.0,0.00038356,120]
[339848255,1728063048872,-500.0,0.00038356,120]
[339848256,1728063048882,-500.0,0.00038356,120]
[339848257,1728063048892,-500.0,0.00038356,120]
[339848258,1728063048902,-500.0,0.00038356,120]
[339848259,1728063048912,-500.0,0.00038356,120]
[339848260,1728063048922,-500.0,0.00038356,120]
[339848261,1728063048931,-500.0,0.00038356,30]
[339848262,1728063048941,-500.0,0.00038356,120]
[339848263,1728063048951,-1983.33,0.00038356,120]
[339848264,1728063048961,-754.34,0.00038356,120]
[339848265,1728063048973,-500.0,0.00038356,120]
[339848266,1728063048983,-958.97,0.00038356,120]
[339848267,1728063048992,-500.0,0.00038356,120]
[339848268,1728063049002,-500.0,0.00038356,120]
[339848269,1728063049011,-3296.41,0.00038356,120]
[339848270,1728063049021,-568.76,0.00038356,120]
[339848271,1728063049031,-876.18,0.00038356,120]
[339848272,1728063049041,-558.52,0.00038356,120]
[339848273,1728063049051,-500.0,0.00038356,120]
[339848274,1728063049061,-500.0,0.00038356,120]
[339848275,1728063049071,-500.0,0.00038356,120]
[339848276,1728063049081,-500.0,0.00038356,120]
[339848277,1728063049091,-802.04,0.00038356,120]
[339848278,1728063049100,-500.0,0.00038356,120]
[339848279,1728063049111,-500.0,0.00038356,120]
[339848280,1728063049121,-500.0,0.00038356,120]
[339848281,1728063049131,-500.0,0.00038356,120]
[339848282,1728063049140,-500.0,0.00038356,120]
[339848283,1728063049150,-500.0,0.00038356,120]
[339848284,1728063049160,-500.09579999,0.00038356,120]
[339848285,1728063049169,-500.0,0.00038356,120]
[339848286,1728063049179,-871.51,0.00038356,120]
[339848287,1728063049188,-500.0,0.00038356,120]
[339848288,1728063049198,-2211.19,0.00038356,120]
[339848289,1728063049208,-500.0,0.00038356,120]
[339848290,1728063049217,-500.0,0.00038356,120]
[339848291,1728063049226,-799.79,0.00038356,120]
[339848292,1728063049236,-1983.3,0.00038356,120]
[339848293,1728063049247,-752.27,0.00038356,120]
[339848294,1728063049257,-435.50785278,0.00038356,120]
[339848295,1728063049267,-500.0,0.00038356,120]
[339848296,1728063049277,-500.0,0.00038356,120]
[339848297,1728063049286,-623.32,0.00038356,120]
[339848298,1728063049296,-169.8966552,0.00038356,120]
[339848299,1728063049306,-500.0,0.00038356,120]
[339848300,1728063049315,-500.0,0.00038356,120]
[339848301,1728063049325,-635.99,0.00038356,21]
[339848302,1728063049335,-500.0,0.00038356,2]
[339848303,1728063049344,-500.0,0.00038356,120]
[339848304,1728063049354,-500.0,0.00038356,120]
[339848305,1728063049364,-500.0,0.00038356,120]
[339848306,1728063049374,-1076.75,0.00038356,120]
[339848307,1728063049384,-500.0,0.00038356,120]
[339848308,1728063049394,-500.0,0.00038356,120]
[339848309,1728063049405,-500.0,0.00038356,120]
[339848310,1728063049414,-500.0,0.00038356,120]
[339848311,1728063049424,-378.7451085,0.00038356,120]
[339848312,1728063049434,-1575.04,0.00038356,120]
[339848313,1728063049444,-761.4,0.00038356,120]
[339848314,1728063049453,-500.0,0.00038356,120]
[339848315,1728063049463,-500.0,0.00038356,120]
[339848316,1728063049473,-500.97073558,0.00038373,5]
[339848317,1728063049482,-160.85905037,0.00038373,5]
[339848318,1728063049492,-309.42139978,0.00038373,5]
[339848319,1728063049502,-333.34915289,0.00038373,2]
[339848320,1728063049511,-500.0,0.00038373,5]
[339848321,1728063049520,-621.17000251,0.00038377,2]
[339848322,1728063049529,-1752.8665031,0.00038403,2]
[339848323,1728063049538,-1000.0,0.00038455,30]
[339848324,1728063049548,-702.61027353,0.000385,120]
[339848325,1728063049557,-150.0,0.00038535,120]
[339848326,1728063049566,-1231.79425078,0.00038629,30]
[339848327,1728063049575,-250.0,0.00038629,2]
[339848328,1728063049584,-500.0,0.00038629,120]
[339848329,1728063049594,-500.0,0.00038629,120]
[339848330,1728063049603,-300.0,0.00038629,30]
[339848331,1728063049613,-303.39985771,0.00038629,30]
[339848332,1728063049622,-300.0,0.00038629,30]
[339848333,1728063049631,-300.0,0.00038629,30]
[339848334,1728063049640,-1911.21,0.0003863,120]
[339848335,1728063049649,-500.0,0.0003863,120]
[339848336,1728063049659,-500.0,0.0003863,120]
[339848337,1728063049668,-500.0,0.0003863,120]
[339848338,1728063049677,-553.57,0.0003863,120]
[339848339,1728063049686,-369.010241,0.0003863,120]
[339848340,1728063049695,-500.0,0.0003863,120]
[339848341,1728063049705,-500.0,0.0003863,120]
[339848342,1728063049714,-501.73397282,0.0003863,120]
[339848343,1728063049724,-500.0,0.0003863,120]
[339848344,1728063049733,-500.0,0.0003863,120]
[339848345,1728063049743,-500.0,0.0003863,120]
[339848346,1728063049751,-500.0,0.0003863,120]
[339848347,1728063049760,-500.0,0.0003863,120]
[339848348,1728063049770,-500.0,0.0003863,120]
[339848349,1728063049779,-500.0,0.0003863,120]
[339848350,1728063049788,-500.0,0.0003863,120]
[339848351,1728063049797,-500.0,0.0003863,120]
[339848352,1728063049807,-500.0,0.0003863,120]
[339848353,1728063049819,-500.0,0.0003863,120]
[339848354,1728063049828,-500.0,0.0003863,120]
[339848355,1728063049837,-500.0,0.0003863,120]
[339848356,1728063049846,-500.0,0.0003863,120]
[339848357,1728063049854,-500.0,0.0003863,120]
[339848358,1728063049864,-500.0,0.0003863,120]
[339848359,1728063049872,-500.0,0.0003863,120]
[339848360,1728063049882,-500.0,0.0003863,120]
[339848361,1728063049891,-258.50380499,0.0003863,120]
[339848362,1728063049902,-500.0,0.0003863,120]
[339848363,1728063049912,-500.0,0.0003863,120]
[339848364,1728063049921,-597.2,0.0003863,120]
[339848365,1728063049932,-500.0,0.0003863,120]
[339848366,1728063049941,-500.0,0.0003863,120]
[339848367,1728063049950,-500.0,0.0003863,120]
[339848368,1728063049960,-500.0,0.0003863,120]
[339848369,1728063049974,-667.73,0.0003863,120]
[339848370,1728063049983,-500.0,0.0003863,120]
[339848371,1728063049992,-500.0,0.0003863,120]
[339848372,1728063050002,-592.21547185,0.0003863,120]
[339848373,1728063050011,-500.0,0.0003863,120]
[339848374,1728063050021,-500.0,0.0003863,120]
[339848375,1728063050030,-500.0,0.0003863,120]
[339848376,1728063050038,-500.0,0.0003863,120]
[339848377,1728063050048,-500.0,0.0003863,120]
[339848378,1728063050058,-500.0,0.0003863,120]
[339848379,1728063050068,-500.0,0.0003863,120]
[339848380,1728063050078,-500.0,0.0003863,120]
[339848381,1728063050088,-588.40193465,0.0003863,120]
[339848382,1728063050099,-500.0,0.0003863,120]
[339848383,1728063050109,-500.0,0.0003863,120]
[339848384,1728063050119,-500.0,0.0003863,120]
[339848385,1728063050128,-500.0,0.0003863,120]
[339848386,1728063050137,-500.0,0.0003863,120]
[339848387,1728063050147,-493.5803742,0.0003863,120]
[339848388,1728063050156,-500.0,0.0003863,120]
[339848389,1728063050165,-500.0,0.0003863,120]
[339848390,1728063050174,-500.0,0.0003863,120]
[339848391,1728063050183,-500.0,0.0003863,120]
[339848392,1728063050192,-549.4578085,0.0003863,120]
[339848393,1728063050202,-500.0,0.0003863,120]
[339848394,1728063050215,-500.0,0.0003863,120]
[339848395,1728063050226,-500.0,0.0003863,120]
[339848396,1728063050236,-500.0,0.0003863,120]
[339848397,1728063050247,-500.0,0.0003863,120]
[339848398,1728063050257,-795.63,0.0003863,120]
[339848399,1728063050268,-500.0,0.0003863,120]
[339848400,1728063050278,-160.04,0.0003863,120]
[339848401,1728063050288,-500.0,0.0003863,120]
[339848402,1728063050299,-352.83,0.0003863,120]
[339848403,1728063050309,-500.0,0.0003863,120]
[339848404,1728063050320,-500.0,0.0003863,120]
[339848405,1728063050330,-500.0,0.0003863,120]
[339848406,1728063050341,-500.0,0.0003863,120]
[339848407,1728063050351,-798.98,0.0003863,120]
[339848408,1728063050362,-500.0,0.0003863,120]
[339848409,1728063050372,-500.0,0.0003863,120]
[339848410,1728063050382,-500.0,0.0003863,120]
[339848411,1728063050391,-500.0,0.0003863,120]
[339848412,1728063050401,-500.0,0.0003863,120]
[339848413,1728063050411,-541.69,0.0003863,120]
[339848414,1728063050421,-500.0,0.0003863,120]
[339848415,1728063050431,-758.91,0.0003863,120]
[339848416,1728063050441,-500.0,0.0003863,120]
[339848417,1728063050451,-500.0,0.0003863,120]
[339848418,1728063050461,-500.0,0.0003863,120]
[339848419,1728063050471,-500.0,0.0003863,120]
[339848420,1728063050480,-500.0,0.0003863,120]
[339848421,1728063050491,-500.0,0.0003863,120]
[339848422,1728063050501,-515.78836902,0.0003863,120]
[339848423,1728063050511,-500.0,0.0003863,120]
[339848424,1728063050520,-500.0,0.0003863,120]
[339848425,1728063050530,-500.0,0.0003863,120]
[339848426,1728063050540,-500.0,0.0003863,120]
[339848427,1728063050550,-500.0,0.0003863,120]
[339848428,1728063050560,-500.0,0.0003863,120]
[339848429,1728063050570,-500.0,0.0003863,120]
[339848430,1728063050580,-500.0,0.0003863,120]
[339848431,1728063050590,-500.0,0.0003863,120]
[339848432,1728063050601,-500.0,0.0003863,120]
[339848433,1728063050612,-500.0,0.0003863,120]
[339848434,1728063050621,-500.0,0.0003863,120]
[339848435,1728063050631,-500.0,0.0003863,120]
[339848436,1728063050642,-500.0,0.0003863,120]
[339848437,1728063050651,-500.0,0.0003863,120]
[339848438,1728063050661,-500.0,0.0003863,120]
[339848439,1728063050670,-404.26797771,0.0003863,120]
[339848440,1728063050680,-500.0,0.0003863,120]
[339848441,1728063050690,-500.0,0.0003863,120]
[339848442,1728063050700,-500.0,0.0003863,120]
[339848443,1728063050710,-500.0,0.0003863,120]
[339848444,1728063050720,-500.0,0.0003863,120]
[339848445,1728063050734,-500.0,0.0003863,120]
[339848446,1728063050744,-500.0,0.0003863,120]
[339848447,1728063050754,-934.41,0.0003863,120]
[339848448,1728063050764,-500.0,0.0003863,120]
[339848449,1728063050774,-500.0,0.0003863,120]
[339848450,1728063050785,-500.0,0.0003863,120]
[339848451,1728063050794,-500.0,0.0003863,14]
[339848452,1728063050804,-500.0,0.0003863,120]
[339848453,1728063050816,-500.0,0.0003863,120]
[339848454,1728063050826,-500.0,0.0003863,120]
[339848455,1728063050836,-500.0,0.0003863,120]
[339848456,1728063050846,-1680.5,0.0003863,120]
[339848457,1728063050856,-500.0,0.0003863,120]
[339848458,1728063050867,-500.0,0.0003863,120]
[339848459,1728063050877,-500.0,0.0003863,120]
[339848460,1728063050887,-500.0,0.0003863,120]
[339848461,1728063050897,-500.0,0.0003863,120]
[339848462,1728063050907,-1187.92,0.0003863,120]
[339848463,1728063050916,-825.43,0.0003863,120]
[339848464,1728063050926,-500.0,0.0003863,120]
[339848465,1728063050936,-500.0,0.0003863,120]
[339848466,1728063050946,-500.0,0.0003863,120]
[339848467,1728063050956,-500.0,0.0003863,120]
[339848468,1728063050968,-500.0,0.0003863,120]
[339848469,1728063050978,-500.0,0.0003863,120]
[339848470,1728063050988,-500.0,0.0003863,120]
[339848471,1728063050999,-5503.47732454,0.0003863,2]
[339848472,1728063051008,-314.7289842,0.0003863,120]
[339848473,1728063051018,-500.0,0.0003863,120]
[339848474,1728063051028,-692.68,0.0003863,120]
[339848475,1728063051038,-500.0,0.0003863,120]
[339848476,1728063051048,-500.0,0.0003863,120]
[339848477,1728063051057,-500.0,0.0003863,120]
[339848478,1728063051067,-500.0,0.0003863,120]
[339848479,1728063051077,-500.0,0.0003863,120]
[339848480,1728063051086,-500.0,0.0003863,120]
[339848481,1728063051096,-500.0,0.0003863,120]
[339848482,1728063051105,-500.0,0.0003863,120]
[339848483,1728063051115,-500.0,0.0003863,120]
[339848484,1728063051125,-500.0,0.0003863,120]
[339848485,1728063051135,-500.0,0.0003863,120]
[339848486,1728063051145,-348.70340672,0.0003863,120]
[339848487,1728063051155,-500.0,0.0003863,120]
[339848488,1728063051164,-500.0,0.0003863,120]
[339848489,1728063051174,-500.0,0.0003863,120]
[339848490,1728063051184,-2506.4,0.0003863,120]
[339848491,1728063051194,-500.0,0.0003863,120]
[339848492,1728063051204,-500.0,0.0003863,120]
[339848493,1728063051213,-500.0,0.0003863,120]
[339848494,1728063051223,-500.0,0.0003863,120]
[339848495,1728063051233,-500.0,0.0003863,120]
[339848496,1728063051242,-500.0,0.0003863,120]
[339848497,1728063051253,-500.0,0.0003863,120]
[339848498,1728063051264,-500.0,0.0003863,120]
[339848499,1728063051276,-500.0,0.0003863,120]
[339848500,1728063051286,-880.7,0.0003863,120]
[339848501,1728063051296,-4619.38,0.0003863,120]
[339848502,1728063051306,-561.26,0.0003863,120]
[339848503,1728063051316,-218.8196926,0.0003863,120]
[339848504,1728063051326,-500.0,0.0003863,120]
[339848505,1728063051335,-525.35,0.0003863,120]
[339848506,1728063051345,-531.70060508,0.0003863,120]
[339848507,1728063051355,-500.0,0.0003863,120]
[339848508,1728063051367,-500.0,0.0003863,120]
[339848509,1728063051382,-500.0,0.0003863,120]
[339848510,1728063051391,-500.0,0.0003863,120]
[339848511,1728063051402,-831.4,0.0003863,120]
[339848512,1728063051412,-178.13914025,0.0003863,120]
[339848513,1728063051423,-500.0,0.0003863,120]
[339848514,1728063051433,-500.0,0.0003863,120]
[339848515,1728063051443,-500.0,0.0003863,120]
[339848516,1728063051453,-500.0,0.0003863,120]
[339848517,1728063051463,-500.0,0.0003863,120]
[339848518,1728063051473,-500.0,0.0003863,7]
[339848519,1728063051483,-500.0,0.0003863,120]
[339848520,1728063051493,-500.0,0.0003863,120]
[339848521,1728063051503,-500.0,0.0003863,120]
[339848522,1728063051513,-641.51,0.0003863,120]
[339848523,1728063051523,-502.97228512,0.0003863,120]
[339848524,1728063051533,-500.0,0.0003863,120]
[339848525,1728063051545,-500.0,0.0003863,120]
[339848526,1728063051556,-500.0,0.0003863,120]
[339848527,1728063051566,-500.0,0.0003863,120]
[339848528,1728063051576,-500.0,0.0003863,120]
[339848529,1728063051586,-500.0,0.0003863,120]
[339848530,1728063051596,-840.91,0.0003863,120]
[339848531,1728063051606,-500.0,0.0003863,120]
[339848532,1728063051615,-500.0,0.0003863,120]
[339848533,1728063051625,-500.0,0.0003863,120]
[339848534,1728063051635,-575.29,0.0003863,120]
[339848535,1728063051645,-500.0,0.0003863,120]
[339848536,1728063051655,-500.0,0.0003863,120]
[339848537,1728063051665,-327.04336638,0.0003863,120]
[339848538,1728063051675,-500.0,0.0003863,120]
[339848539,1728063051685,-500.0,0.0003863,120]
[339848540,1728063051695,-500.0,0.0003863,120]
[339848541,1728063051705,-500.0,0.0003863,120]
[339848542,1728063051715,-500.0,0.0003863,120]
[339848543,1728063051726,-500.0,0.0003863,120]
[339848544,1728063051736,-500.0,0.0003863,120]
[339848545,1728063051746,-1075.75,0.0003863,120]
[339848546,1728063051756,-500.0,0.0003863,120]
[339848547,1728063051766,-500.0,0.0003863,120]
[339848548,1728063051777,-500.0,0.0003863,120]
[339848549,1728063051787,-500.0,0.0003863,120]
[339848550,1728063051797,-500.0,0.0003863,120]
[339848551,1728063051807,-500.0,0.0003863,120]